Workbook

Sheet INSTRUCTIONS GENERALES
A1: GRILLE CALCULANTE DE L'INDICE DE RÉPARABILITÉ DES TONDEUSES À GAZON ÉLECTRIQUES SUR BATTERIE
A2: INSTRUCTIONS GENERALES
A4: OBJET DU FICHIER
A5: Ce fichier Excel permet de calculer l'indice de réparabilité d'une tondeuse à gazon électrique sur batterie.
A7: CADRE RÉGLEMENTAIRE
A8: L'article L. 541-9-2 du Code de l’environnement impose aux producteurs, importateurs, distributeurs ou autres metteurs sur le marché d’équipements électriques et électroniques de communiquer sans frais aux vendeurs de leurs produits ainsi qu’à toute personne qui en fait la demande l’indice de réparabilité de ces équipements ainsi que les paramètres ayant permis de l’établir. Cet indice vise à informer le consommateur sur la capacité à réparer le produit concerné. Les informations saisies dans le présent document doivent être véridiques et vérifiables.
A9: Les modalités de mise en oeuvre et d'application de l'indice de réparabilité sont précisées dans le Décret N°2020-xxx du xx xxx 2020 relatif à l'indice de réparabilité des équipements électriques et électroniques, l'arrêté du XXXX relatif aux modalités d’affichage, à la signalétique et aux paramètres généraux de calcul de l’indice de réparabilité et l'arrêté du XXXX relatif aux critères, aux sous critères et au système de notation pour le calcul et l’affichage de l’indice de réparabilité des tondeuses à gazon électriques sur batterie.
A11: Une notice de calcul complémentaire apporte des explications et des précisions pour une application du décret et des arrêtés relatifs à l'indice de réparabilité des équipements électriques et électroniques. Toutes les informations contenues dans la notice sont à retrouver au sein de ces grilles.
A13: CONTENU DU FICHIER
A14: Instructions générales | B14: Description de l'objet du fichier Excel, du cadre réglementaire de l'indice de réparabilité, du contenu du fichier et de son mode de remplissage.
A15: Information produit | B15: Description du produit et de l’évaluation de son indice de réparabilité.
A16: C1_Documentation | B16: Critères détaillés permettant d'évaluer l'indice de réparabilité du produit. Pour chaque onglet, toutes "les cases en orange" sont à compléter en sélectionnant la bonne information dans "le menu déroulant" ou en renseignant directement la bonne information dans la case (cas du critère 4 : prix et du fichier à transmettre). Une fois l'information renseignée, la case concernée devient "verte". Aucune case ne doit être laissée sans réponse. A noter que les cellules doivent être complétées une à une (elles ne doivent pas être tirées).
A17: C2_Accès démontage
A18: C3_Disponibilité des pièces détachées
A19: C4_Prix
A20: C5_Spécifique
A21: Note finale | B21: Cet onglet calcule automatiquement la note globale de réparabilité du produit et les notes par critères et sous-critères, avant et après pondération. Ce fichier est à transmettre à tout demandeur.
A22: Annexe 1 | B22: Précision sur la terminologie utilisée pour le calcul de l'indice de réparabilité.
A23: Annexe 2 | B23: Précision sur les outils qualifiés de "communs" et leurs références de norme.
A24: Annexe 3 | B24: Précision et cas d'application sur la notion d'étape de démontage d'une pièce.
A26: RÉINTIALISATION DES DONNÉES
A27: REINTIALISER LES CHOIX | B27: Ce bouton permet de réinitialiser l'intégralité des données saisies dans le classeur. Si vous souhaitez effectuer cette action, veuillez activer la macro du fichier et cliquer sur ce bouton. ATTENTION : cette action est irréversible.
A30: AUTRES PRECISIONS A CARACTERE TRANSVERSAL
A31: Utilisation du vocabulaire européen (critères 1, 2 et 3)
A32: Le vocabulaire utilisé pour dénommer les informations à documenter, quelle que soit la catégorie concernée, ainsi que certaines pièces détachées est issu du règlement (UE) 2019/2023 de la Commission du 1er octobre 2019[1] pour les lave-linges et du règlement (UE) 2019/2021 de la Commission du 1er octobre 2019[2] pour les téléviseurs. La liste de ces documents et de ces pièces est donnée dans l’annexe 1 de la présente grille.
A33: Engagements différents de durée de disponibilité entre documentation et pièces détachées (critères 1 et 3)
A34: Le producteur ou l’importateur peut prendre des engagements différents pour les durées de disponibilité de la documentation et des pièces détachées pour un même équipement, par exemple : 9 ans pour la disponibilité de la documentation et 7 ans pour la disponibilité des pièces détachés.
A35: Absence d’une pièce sur l’équipement
A36: Si l’équipement ne comporte pas une pièce listée dans la liste 1 ou 2 de la catégorie concernée, alors les points correspondant à la pièce en question sont accordés. Pour les modules WIFI et Bluetooth, voir le cas particulier des téléviseurs ci-dessous.
A37: Concernant le critère 4 relatif au prix, le prix de la pièce absente n’apparait pas dans le calcul.
A38: Tondeuse à gazon électrique sur batterie
A39: Détermination des étapes de démontages
A40: Pour cette catégorie, l’action « débrancher l’équipement du secteur » n’est pas considérée comme une étape.
A41: Moteur et balai de moteur
A42: Dans le cas où un moteur de l’équipement ne dispose pas de balai, les exigences liées au calcul de l’indice ne portent que sur le moteur concerné.
A43: Prix de l’équipement si vendu sans batterie
A44: Dans le cas où l’équipement est vendu sans batterie, le prix de l’équipement à considérer pour le calcul du critère 4 relatif aux prix des pièces détachées doit inclure le prix d’une batterie compatible au moment du calcul de l’indice.
A46: [1] établissant des exigences en matière d’écoconception applicables aux lave-linge ménagers et aux lave-linge séchants ménagers conformément à la directive 2009/125/CE du Parlement européen et du Conseil, modifiant le règlement (CE) no 1275/2008 de la Commission et abrogeant le règlement (UE) no 1015/2010 de la Commission.
A47: [2] fixant les exigences en matière d’écoconception pour les dispositifs d’affichage électronique conformément à la directive 2019/125/CE du Parlement européen et du Conseil modifiant le règlement (CE) n°642/2009 de la Commission.

Sheet INFORMATION_PRODUIT
A1: INFORMATIONS RELATIVES AU PRODUIT ET AU CALCUL DE SON INDICE | E1: Tondeuse à gazon électrique sur batterie
A6: DATE DU CALCUL | C6: 2022-01-24
A7: DEMANDEUR DE L'ÉVALUATION
B8: NOM
B9: PRÉNOM
B10: MAIL
B11: TÉLÉPHONE | C11: A compléter
A12: RESPONSABLE DE L'ÉVALUATION | C12: A compléter
B13: NOM | C13: BAQUE
B14: PRÉNOM | C14: Jérôme
B15: MAIL | C15: jbaque@solvert.com
B16: TÉLÉPHONE | C16: 01 30 81 77 15
A17: PRODUIT ÉVALUÉ
B18: Nom ou marque commerciale du fournisseur | C18: Toro
B19: Adresse du fournisseur | C19: 8111 Lyndale Ave South Bloomington MN 55420-1196 USA
B20: Référence du modèle donnée par le fournisseur | C20: 21836
C21: A compléter
C22: A compléter

Sheet C1_DOCUMENTATION
A1: CRITÈRE 1 : DOCUMENTATION | H1: Tondeuse à gazon électrique sur batterie
A4: SOUS-CRITÈRE 1.1 : ENGAGEMENT SUR LA DURÉE DE MISE À DISPOSITION SANS FRAIS DE LA DOCUMENTATION TECHNIQUE ET RELATIVE AUX CONSEILS D'UTILISATION ET D'ENTRETIEN
A7: PRECISIONS :
A8: - Documents / Informations : Les informations peuvent librement être réparties à l’initiative du producteur dans des documents divers physiques ou dématérialisés.
A9: Les points de la notation sont attribués si l’information visée est disponible dans un quelconque document.
A10: - Langue des documents : Conformément à la Loi du 4 août 1994 relative à l’emploi de la langue française, les informations destinées aux consommateurs doivent être
A11: libellées en français ; l’anglais est toléré pour les aspects très techniques destinés aux réparateurs professionnels (exemple : les bulletins techniques).
A12: - Bulletins techniques : Ce libellé recouvre des annonces faites par le producteur à destination des réparateurs professionnels, les informant par exemple de bugs
A13: récemment découverts, des corrections à y apporter, de la rupture d’approvisionnement de pièces qui ont été remplacées par d’autres. Les points sont attribués si
A14: l’édition d’un bulletin technique est prévue au fil de l’eau (lorsque c’est nécessaire).
A15: - Informations sur l'accès aux réparateurs professionnels : Le producteur ou l’importateur est libre d’indiquer aux consommateurs les réparateurs professionnels de son choix
A16: mais il est conseillé de mentionner au minimum les annuaires des réparateurs répertoriés par l'ADEME : www.annuaire-reparation.fr
A17: - Instructions pour l'auto-réparation : Les points correspondant aux années de disponibilité sont accordés seulement si une ou plusieurs opérations sont proposées aux
A18: consommateurs pour l’autoréparation, avec les consignes de sécurité adéquates, dans une rubrique spécifique sous le titre « autoréparation », par exemple au sein du
A19: manuel technique ou de la notice de conseils d’utilisation et d’entretien. L’article L 441-5 du code de la consommation précise la responsabilité du producteur
A20: concernant l’autoréparation.
A26: Engagement sur la durée de disponibilité (en années) de la documentation | D26: Colonne B | F26: Colonne C
D27: Réparateurs | F27: Consommateurs
A28: Type de documentation | D28: Durée de disponibilité | E28: Sous-total | F28: Durée de disponibilité | G28: Sous-total
A29: 1.1.A | B29: Identification sans équivoque du produit (type de produit, marque, nom commercial, modèle et éventuellement le numéro de série) | D29: si X ≥ 9 ans | E29: =IF(D29="si ND ou X < 5 ans",0,IF(D29="si 5 ans ≤ X < 7 ans",5,IF(D29="si 7 ans ≤ X < 9 ans",7,IF(D29="si X ≥ 9 ans",9,0)))) -> 9 | F29: si X ≥ 9 ans | G29: =IF(F29="si ND ou X < 5 ans",0,IF(F29="si 5 ans ≤ X < 7 ans",5,IF(F29="si 7 ans ≤ X < 9 ans",7,IF(F29="si X ≥ 9 ans",9,0)))) -> 9
A30: 1.1.B | B30: Schéma de démontage ou vue éclatée | D30: si X ≥ 9 ans | E30: =IF(D30="si ND ou X < 5 ans",0,IF(D30="si 5 ans ≤ X < 7 ans",5,IF(D30="si 7 ans ≤ X < 9 ans",7,IF(D30="si X ≥ 9 ans",9,0)))) -> 9 | F30: si X ≥ 9 ans | G30: =IF(F30="si ND ou X < 5 ans",0,IF(F30="si 5 ans ≤ X < 7 ans",5,IF(F30="si 7 ans ≤ X < 9 ans",7,IF(F30="si X ≥ 9 ans",9,0)))) -> 9
A31: 1.1.C | B31: Schémas de câblage et de raccordement | D31: si X ≥ 9 ans | E31: 9 | F31: si X ≥ 9 ans | G31: =IF(F31="si ND ou X < 5 ans",0,IF(F31="si 5 ans ≤ X < 7 ans",5,IF(F31="si 7 ans ≤ X < 9 ans",7,IF(F31="si X ≥ 9 ans",9,0)))) -> 9
A32: 1.1.D | B32: Schémas des cartes électroniques
A33: 1.1.E | B33: Liste du matériel de réparation et de test nécessaire à la réparation | D33: si X ≥ 9 ans | E33: 9 | F33: si X ≥ 9 ans | G33: =IF(F33="si ND ou X < 5 ans",0,IF(F33="si 5 ans ≤ X < 7 ans",5,IF(F33="si 7 ans ≤ X < 9 ans",7,IF(F33="si X ≥ 9 ans",9,0)))) -> 9
A34: 1.1.F | B34: Manuel technique d'instructions relatives à la réparation | D34: si X ≥ 9 ans | E34: 9 | F34: si X ≥ 9 ans | G34: =IF(F34="si ND ou X < 5 ans",0,IF(F34="si 5 ans ≤ X < 7 ans",5,IF(F34="si 7 ans ≤ X < 9 ans",7,IF(F34="si X ≥ 9 ans",9,0)))) -> 9
A35: 1.1.G | B35: Codes d'erreurs et de diagnostic
A36: 1.1.H | B36: Informations sur composants et diagnostic | D36: si X ≥ 9 ans | E36: 9 | F36: si X ≥ 9 ans | G36: =IF(F36="si ND ou X < 5 ans",0,IF(F36="si 5 ans ≤ X < 7 ans",5,IF(F36="si 7 ans ≤ X < 9 ans",7,IF(F36="si X ≥ 9 ans",9,0)))) -> 9
A37: 1.1.I | B37: Instructions logicielles (y compris réinitialisation)
A38: 1.1.J | B38: Accès aux incidents signalés et enregistrés dans l'équipement
A39: 1.1.K | B39: Bulletins techniques | D39: si X ≥ 9 ans | E39: =IF(D39="si ND ou X < 5 ans",0,IF(D39="si 5 ans ≤ X < 7 ans",5,IF(D39="si 7 ans ≤ X < 9 ans",7,IF(D39="si X ≥ 9 ans",9,0)))) -> 9 | F39: si X ≥ 9 ans | G39: =IF(F39="si ND ou X < 5 ans",0,IF(F39="si 5 ans ≤ X < 7 ans",5,IF(F39="si 7 ans ≤ X < 9 ans",7,IF(F39="si X ≥ 9 ans",9,0)))) -> 9
A40: 1.1.L | B40: Encadrement spécifique de l'auto-réparation (opérations conseillées, instructions de sécurité et de réparation, répercussions éventuelles sur la garantie) | F40: si X ≥ 9 ans | G40: 9
A41: 1.1.M | B41: Informations sur accès aux réparateurs professionnels | F41: si X ≥ 9 ans | G41: 9
A42: 1.1.N | B42: Détection des pannes et actions requises (approche grand public) | F42: si X ≥ 9 ans | G42: 9
A43: 1.1.O | B43: Conseils d'utilisation et d'entretien | F43: si X ≥ 9 ans | G43: 9
A44: Total sous-critère 1.1 | E44: =SUM(E29:E41) -> 63 | G44: =SUM(G29:G43) -> 99 | H44: =E44+G44 -> 162 | I44: /162
H45: =H44*10/162 -> 10 | I45: /10
A46: * Les points correspondant aux années de disponibilité sont accordés seulement si une ou plusieurs opérations sont proposées aux consommateurs pour l’autoréparation, avec les consignes de sécurité adéquates, dans une rubrique spécifique sous le titre « autoréparation », par exemple au sein du manuel technique ou de la notice de conseils d’utilisation et d’entretien. L’article L 441-5 du code de la consommation précise la responsabilité du producteur concernant l’autoréparation.

Sheet C2_ACCES_DEMONTAGE
A1: CRITÈRE 2 : DÉMONTABILITÉ, ACCÈS, OUTILS, FIXATIONS | J1: Tondeuse à gazon électrique sur batterie
A4: VEUILLEZ RÉPONDRE À LA QUESTION PRÉLIMINAIRE SUIVANTE : | E4: RÉPONSE
A5: 1) | B5: Le produit à évaluer possède-t-il un porte lames ? | E5: Oui
A7: SOUS-CRITÈRE 2.1 : FACILITÉ DE DÉMONTAGE DES PIÈCES DÉTACHÉES - PIÈCES PANNE/CASSE (LISTE 2)
A9: PRÉCISION : | J9: CAS PARTICULIER DE LA TONDEUSE À GAZON ELECTRIQUE
A10: Les précisions sur les étapes de démontage sont disponibles à l'annexe 3 de la présente grille calculante. | J10: ÉLECTRIQUE SUR BATTERIE
J11: Pour cette catégorie d'équipement, l'action de "débrancher l'équipement du secteur" (voir annexe 3) n'est pas considérée comme une étape de démontage.
A18: Facilité de démontage | D18: Notation
A20: Liste 2 : Pièces panne / casse | D20: Nombre d'étapes pour accès unitaire à la pièce | E20: Sous-total
A21: 2.1.A | B21: Lames | D21: si DDi < 5 | E21: =IF(D21="si ND ou DDi ≥ 9",0,IF(D21="si 9 > DDi ≥ 7",1,IF(D21="si 7 > DDi ≥ 5",2,IF(D21="si DDi < 5",3,)))) -> 3
A23: 2.1.B | B23: Porte lames | D23: si DDi < 5 | E23: =IF(D23="si ND ou DDi ≥ 9",0,IF(D23="si 9 > DDi ≥ 7",1,IF(D23="si 7 > DDi ≥ 5",2,IF(D23="si DDi < 5",3,)))) -> 3
A25: 2.1.C | B25: Interrupteur marche/arrêt | D25: si DDi < 5 | E25: =IF(D25="si ND ou DDi ≥ 9",0,IF(D25="si 9 > DDi ≥ 7",1,IF(D25="si 7 > DDi ≥ 5",2,IF(D25="si DDi < 5",3,)))) -> 3
A27: 2.1.D | B27: Roues | D27: si DDi < 5 | E27: =IF(D27="si ND ou DDi ≥ 9",0,IF(D27="si 9 > DDi ≥ 7",1,IF(D27="si 7 > DDi ≥ 5",2,IF(D27="si DDi < 5",3,)))) -> 3
A29: Total sous-critère 2.1 | E29: =SUM(E21:E28) -> 12 | F29: =IF(E5="Non","/9","/12") -> /12
E30: =IF(E5="Non",E29*10/9,E29*10/12) -> 10 | F30: /10
A32: SOUS-CRITÈRE 2.2 : OUTILS NÉCESSAIRES AU DÉMONTAGE DES PIÈCES DÉTACHÉES - PIÈCES PANNE/CASSE (LISTE 2)
A34: PRÉCISION :
A35: - Les outils nécessaires au démontage unitaire d'une pièce concernent l'ensemble des outils utilisés ayant permis d'accéder à la pièce, de la
A36: démonter/désolidariser de l'équipement en vue de son remplacement sans endommager le produit (ce qui peut inclure l'accès aux fixations).
A37: - Les outils utilisés sont classés en différentes catégories en fonction de leurs accessibilités et de leurs contraintes d'utilisation pour
A38: l'utilisateur final.
A39: - Dans le cas où une pièce nécessiterait l’utilisation de différents types d’outils, le scénario le plus défavorable devra être retenu pour la notation.
A40: notation.
A44: Outils nécessaires au démontage | D44: Notation
A46: Liste 2 : Pièces panne / casse | D46: Type d'outils nécessaire au démontage | E46: Sous-total
A47: 2.2.A | B47: Lames | D47: D : Démontable sans outils avec des outils communs ou outils fournis avec le produit | E47: =IF(D47="A : Non démontable",0,IF(D47="B : Démontable avec des outils propriétaires",1,IF(D47="C : Démontable avec des outils spécifiques",2,IF(D47="D : Démontable sans outils avec des outils communs ou outils fournis avec le produit",4,0)))) -> 4
A49: 2.2.B | B49: Porte lames | D49: D : Démontable sans outils avec des outils communs ou outils fournis avec le produit | E49: =IF(D49="A : Non démontable",0,IF(D49="B : Démontable avec des outils propriétaires",1,IF(D49="C : Démontable avec des outils spécifiques",2,IF(D49="D : Démontable sans outils avec des outils communs ou outils fournis avec le produit",4,0)))) -> 4
A51: 2.2.C | B51: Interrupteur marche/arrêt | D51: D : Démontable sans outils avec des outils communs ou outils fournis avec le produit | E51: =IF(D51="A : Non démontable",0,IF(D51="B : Démontable avec des outils propriétaires",1,IF(D51="C : Démontable avec des outils spécifiques",2,IF(D51="D : Démontable sans outils avec des outils communs ou outils fournis avec le produit",4,0)))) -> 4
A53: 2.2.D | B53: Roues | D53: D : Démontable sans outils avec des outils communs ou outils fournis avec le produit | E53: =IF(D53="A : Non démontable",0,IF(D53="B : Démontable avec des outils propriétaires",1,IF(D53="C : Démontable avec des outils spécifiques",2,IF(D53="D : Démontable sans outils avec des outils communs ou outils fournis avec le produit",4,0)))) -> 4
A55: Total sous-critère 2.2 | E55: =SUM(E47:E54) -> 16 | F55: =IF(E5="Non","/12","/16") -> /16
E56: =IF(E5="Non",E55*10/12,E55*10/16) -> 10 | F56: /10
A58: SOUS-CRITÈRE 2.3 : CARACTÉRISTIQUES DES FIXATIONS POUR L'ASSEMBLAGE DES PIÈCES DES LISTES 1 ET 2
A60: PRÉCISION :
A61: - Fixation : Dispositif matériel qui raccorde ou fixe mécaniquement deux ou plusieurs objets, parties ou pièces détachées. Une fixation est
A62: généralement non permanente, c'est à dire, qu'elle peut être enlevée ou démontée facilement sans endommager les objets, parties ou pièces
A63: détachées raccordée(s) ou fixée(s) ensemble (exemple : vis ou clips). Un collage ou une soudure sont a contrario des fixations permanentes.
A64: - Les fixations rencontrées et retirées sont classées en fonction de leurs accessibilités, de leurs caractères amovibles et réutilisables et des
A65: contraintes qu'elles engendrent pour la réparation du produit (exemple : fixation causant des dommages ou laissant des résidus de colle ou de
A66: soudure lors du démontage).
A67: - Dans le cas où une pièce nécessiterait le retrait de différents types de fixations, le scénario le plus défavorable devra être retenu pour la
A68: notation.
A71: Caractéristiques des fixations | D71: Notation
A73: Liste 1 : Pièces fonctionnelles Liste 2 : Pièces panne/casse | D73: Type de fixations | E73: Sous-total
A75: 2.3.A | B75: Guidon | D75: C : Amovible et réutilisable | E75: =IF(D75="A : Ni amovible ni réutilisable",0,IF(D75="B : Amovible mais pas réutilisable",1,IF(D75="C : Amovible et réutilisable",2,0))) -> 2
A77: 2.3.B | B77: Panier | D77: C : Amovible et réutilisable | E77: =IF(D77="A : Ni amovible ni réutilisable",0,IF(D77="B : Amovible mais pas réutilisable",1,IF(D77="C : Amovible et réutilisable",2,0))) -> 2
A79: 2.3.C | B79: Hauteur de coupe | D79: C : Amovible et réutilisable | E79: =IF(D79="A : Ni amovible ni réutilisable",0,IF(D79="B : Amovible mais pas réutilisable",1,IF(D79="C : Amovible et réutilisable",2,0))) -> 2
A81: 2.3.D | B81: Capot | D81: C : Amovible et réutilisable | E81: =IF(D81="A : Ni amovible ni réutilisable",0,IF(D81="B : Amovible mais pas réutilisable",1,IF(D81="C : Amovible et réutilisable",2,0))) -> 2
A83: 2.3.E | B83: Moteur | D83: C : Amovible et réutilisable | E83: =IF(D83="A : Ni amovible ni réutilisable",0,IF(D83="B : Amovible mais pas réutilisable",1,IF(D83="C : Amovible et réutilisable",2,0))) -> 2
A85: 2.3.F | B85: Batterie | D85: C : Amovible et réutilisable | E85: =IF(D85="A : Ni amovible ni réutilisable",0,IF(D85="B : Amovible mais pas réutilisable",1,IF(D85="C : Amovible et réutilisable",2,0))) -> 2
A87: 2.3.G | B87: Lames | D87: C : Amovible et réutilisable | E87: =IF(D87="A : Ni amovible ni réutilisable",0,IF(D87="B : Amovible mais pas réutilisable",1,IF(D87="C : Amovible et réutilisable",2,0))) -> 2
A89: 2.3.H | B89: Porte lames | D89: C : Amovible et réutilisable | E89: =IF(D89="A : Ni amovible ni réutilisable",0,IF(D89="B : Amovible mais pas réutilisable",1,IF(D89="C : Amovible et réutilisable",2,0))) -> 2
A91: 2.3.I | B91: Interrupteur marche/arrêt | D91: C : Amovible et réutilisable | E91: =IF(D91="A : Ni amovible ni réutilisable",0,IF(D91="B : Amovible mais pas réutilisable",1,IF(D91="C : Amovible et réutilisable",2,0))) -> 2
A93: 2.3.J | B93: Roues | D93: C : Amovible et réutilisable | E93: =IF(D93="A : Ni amovible ni réutilisable",0,IF(D93="B : Amovible mais pas réutilisable",1,IF(D93="C : Amovible et réutilisable",2,0))) -> 2
A95: Total sous-critère 2.3 | E95: =SUM(E75:E94) -> 20 | F95: =IF(E5="Non","/18","/20") -> /20
E96: =IF(E5="Non",E95*10/18,E95*10/20) -> 10 | F96: /10

Sheet C3_DISPONIBILITE_PD
A1: CRITÈRE 3 : DISPONIBILITÉ DES PIÈCES DÉTACHÉES | J1: Tondeuse à gazon électrique sur batterie
A4: SOUS-CRITÈRE 3.1 : ENGAGEMENT SUR LA DURÉE DE DISPONIBILITÉ DES PIÈCES DÉTACHÉES - PIÈCES PANNE / CASSE (LISTE 2)
A6: PRÉCISIONS :
A7: - Définition de distributeur en pièces détachées : La définition d’un distributeur en pièces détachées est donnée dans le glossaire en annexe 1 de la
A8: présente notice.
A9: - Engagements sur la durée de disponibilité des pièces détachées et des délais de livraison : Pour accorder les points aux colonnes 1, il convient que le
A10: producteur dispose de son propre service de réparation en interne (exemple : via le service après-vente). Que ce soit pour la durée de disponibilité
A11: des pièces détachées ou le délai de livraison, le producteur ou l’importateur doit retenir, parmi l’ensemble de ses pratiques envers les réparateurs
A12: agréés et indépendants, la durée ou le délai les plus pénalisants pour chaque pièce. Dans le cas où le producteur ou l'importateur ne met pas les
A13: pièces détachées à disposition des réparateurs indépendants, alors les points ne sont pas attribués au critère 3.
A14: En outre, dans le cas où le producteur ou un importateur ne dispose pas d'un réseau agréé, il s'attribue les points à partir des pratiques les plus
A15: pénalisantes envers les réparateurs indépendants.
A16: - Délai de livraison : Le délai de livraison s’entend en jour ouvrable entre le jour de la commande et le jour d’arrivée chez l’acteur concerné.
A20: Engagement sur la durée de disponibilité (en années) | D20: Colonne A | F20: Colonne B | H20: Colonne C | J20: Colonne D
D21: Producteur | F21: Distributeurs de pièces détachées | H21: Réparateurs | J21: Consommateurs
A22: Liste 2 : Pièces panne / casse | D22: Durée de disponibilité | E22: Sous-total | F22: Durée de disponibilité | G22: Sous-total | H22: Durée de disponibilité | I22: Sous-total | J22: Durée de disponibilité | K22: Sous-total
A23: 3.1.A | B23: Lames | D23: si X ≥ 9 ans | E23: =IF(D23="si ND ou X < 5 ans",0,IF(D23="si 5 ans ≤ X < 7 ans",5,IF(D23="si 7 ans ≤ X < 9 ans",7,IF(D23="si X ≥ 9 ans",9,0)))) -> 9 | F23: si X ≥ 9 ans | G23: =IF(F23="si ND ou X < 5 ans",0,IF(F23="si 5 ans ≤ X < 7 ans",5,IF(F23="si 7 ans ≤ X < 9 ans",7,IF(F23="si X ≥ 9 ans",9,0)))) -> 9 | H23: si X ≥ 9 ans | I23: =IF(H23="si ND ou X < 5 ans",0,IF(H23="si 5 ans ≤ X < 7 ans",5,IF(H23="si 7 ans ≤ X < 9 ans",7,IF(H23="si X ≥ 9 ans",9,0)))) -> 9 | J23: si X ≥ 9 ans | K23: =IF(J23="si ND ou X < 5 ans",0,IF(J23="si 5 ans ≤ X < 7 ans",5,IF(J23="si 7 ans ≤ X < 9 ans",7,IF(J23="si X ≥ 9 ans",9,0)))) -> 9
A25: 3.1.B | B25: Porte lames | D25: si X ≥ 9 ans | E25: =IF(D25="si ND ou X < 5 ans",0,IF(D25="si 5 ans ≤ X < 7 ans",5,IF(D25="si 7 ans ≤ X < 9 ans",7,IF(D25="si X ≥ 9 ans",9,0)))) -> 9 | F25: si X ≥ 9 ans | G25: =IF(F25="si ND ou X < 5 ans",0,IF(F25="si 5 ans ≤ X < 7 ans",5,IF(F25="si 7 ans ≤ X < 9 ans",7,IF(F25="si X ≥ 9 ans",9,0)))) -> 9 | H25: si X ≥ 9 ans | I25: =IF(H25="si ND ou X < 5 ans",0,IF(H25="si 5 ans ≤ X < 7 ans",5,IF(H25="si 7 ans ≤ X < 9 ans",7,IF(H25="si X ≥ 9 ans",9,0)))) -> 9 | J25: si X ≥ 9 ans | K25: =IF(J25="si ND ou X < 5 ans",0,IF(J25="si 5 ans ≤ X < 7 ans",5,IF(J25="si 7 ans ≤ X < 9 ans",7,IF(J25="si X ≥ 9 ans",9,0)))) -> 9
A27: 3.1.C | B27: Interrupteur marche/arrêt | D27: si X ≥ 9 ans | E27: =IF(D27="si ND ou X < 5 ans",0,IF(D27="si 5 ans ≤ X < 7 ans",5,IF(D27="si 7 ans ≤ X < 9 ans",7,IF(D27="si X ≥ 9 ans",9,0)))) -> 9 | F27: si X ≥ 9 ans | G27: =IF(F27="si ND ou X < 5 ans",0,IF(F27="si 5 ans ≤ X < 7 ans",5,IF(F27="si 7 ans ≤ X < 9 ans",7,IF(F27="si X ≥ 9 ans",9,0)))) -> 9 | H27: si X ≥ 9 ans | I27: =IF(H27="si ND ou X < 5 ans",0,IF(H27="si 5 ans ≤ X < 7 ans",5,IF(H27="si 7 ans ≤ X < 9 ans",7,IF(H27="si X ≥ 9 ans",9,0)))) -> 9 | J27: si X ≥ 9 ans | K27: =IF(J27="si ND ou X < 5 ans",0,IF(J27="si 5 ans ≤ X < 7 ans",5,IF(J27="si 7 ans ≤ X < 9 ans",7,IF(J27="si X ≥ 9 ans",9,0)))) -> 9
A29: 3.1.D | B29: Roues | D29: si X ≥ 9 ans | E29: =IF(D29="si ND ou X < 5 ans",0,IF(D29="si 5 ans ≤ X < 7 ans",5,IF(D29="si 7 ans ≤ X < 9 ans",7,IF(D29="si X ≥ 9 ans",9,0)))) -> 9 | F29: si X ≥ 9 ans | G29: =IF(F29="si ND ou X < 5 ans",0,IF(F29="si 5 ans ≤ X < 7 ans",5,IF(F29="si 7 ans ≤ X < 9 ans",7,IF(F29="si X ≥ 9 ans",9,0)))) -> 9 | H29: si X ≥ 9 ans | I29: =IF(H29="si ND ou X < 5 ans",0,IF(H29="si 5 ans ≤ X < 7 ans",5,IF(H29="si 7 ans ≤ X < 9 ans",7,IF(H29="si X ≥ 9 ans",9,0)))) -> 9 | J29: si X ≥ 9 ans | K29: =IF(J29="si ND ou X < 5 ans",0,IF(J29="si 5 ans ≤ X < 7 ans",5,IF(J29="si 7 ans ≤ X < 9 ans",7,IF(J29="si X ≥ 9 ans",9,0)))) -> 9
A31: Total sous-critère 3.1 | E31: =SUM(E23:E30) -> 36 | G31: =SUM(G23:G30) -> 36 | I31: =SUM(I23:I30) -> 36 | K31: =SUM(K23:K30) -> 36 | L31: =E31+G31+I31+K31 -> 144 | M31: =IF('C2_ACCES_DEMONTAGE'!E5="Non","/108","/144") -> /144
L32: =IF('C2_ACCES_DEMONTAGE'!E5="Non",L31*10/108,L31*10/144) -> 10 | M32: /10
A34: SOUS-CRITÈRE 3.2 : ENGAGEMENT SUR LA DURÉE DE DISPONIBILITÉ DES PIÈCES DÉTACHÉES - PIÈCES FONCTIONNELLES (LISTE 1)
A38: Engagement sur la durée de disponibilité (en années) | D38: Colonne A | F38: Colonne B | H38: Colonne C | J38: Colonne D
D39: Producteur | F39: Distributeurs de pièces détachées | H39: Réparateurs | J39: Consommateurs
A40: Liste 1 : Pièces fonctionnelles | D40: Durée de disponibilité | E40: Sous-total | F40: Durée de disponibilité | G40: Sous-total | H40: Durée de disponibilité | I40: Sous-total | J40: Durée de disponibilité | K40: Sous-total
A41: 3.2.A | B41: Guidon | D41: si X ≥ 9 ans | E41: =IF(D41="si ND ou X < 5 ans",0,IF(D41="si 5 ans ≤ X < 7 ans",5,IF(D41="si 7 ans ≤ X < 9 ans",7,IF(D41="si X ≥ 9 ans",9,0)))) -> 9 | F41: si X ≥ 9 ans | G41: =IF(F41="si ND ou X < 5 ans",0,IF(F41="si 5 ans ≤ X < 7 ans",5,IF(F41="si 7 ans ≤ X < 9 ans",7,IF(F41="si X ≥ 9 ans",9,0)))) -> 9 | H41: si X ≥ 9 ans | I41: =IF(H41="si ND ou X < 5 ans",0,IF(H41="si 5 ans ≤ X < 7 ans",5,IF(H41="si 7 ans ≤ X < 9 ans",7,IF(H41="si X ≥ 9 ans",9,0)))) -> 9 | J41: si X ≥ 9 ans | K41: =IF(J41="si ND ou X < 5 ans",0,IF(J41="si 5 ans ≤ X < 7 ans",5,IF(J41="si 7 ans ≤ X < 9 ans",7,IF(J41="si X ≥ 9 ans",9,0)))) -> 9
A43: 3.2.B | B43: Panier | D43: si X ≥ 9 ans | E43: =IF(D43="si ND ou X < 5 ans",0,IF(D43="si 5 ans ≤ X < 7 ans",5,IF(D43="si 7 ans ≤ X < 9 ans",7,IF(D43="si X ≥ 9 ans",9,0)))) -> 9 | F43: si X ≥ 9 ans | G43: 9 | H43: si X ≥ 9 ans | I43: =IF(H43="si ND ou X < 5 ans",0,IF(H43="si 5 ans ≤ X < 7 ans",5,IF(H43="si 7 ans ≤ X < 9 ans",7,IF(H43="si X ≥ 9 ans",9,0)))) -> 9 | J43: si X ≥ 9 ans | K43: 9
A45: 3.2.C | B45: Hauteur de coupe | D45: si X ≥ 9 ans | E45: =IF(D45="si ND ou X < 5 ans",0,IF(D45="si 5 ans ≤ X < 7 ans",5,IF(D45="si 7 ans ≤ X < 9 ans",7,IF(D45="si X ≥ 9 ans",9,0)))) -> 9 | F45: si X ≥ 9 ans | G45: 9 | H45: si X ≥ 9 ans | I45: =IF(H45="si ND ou X < 5 ans",0,IF(H45="si 5 ans ≤ X < 7 ans",5,IF(H45="si 7 ans ≤ X < 9 ans",7,IF(H45="si X ≥ 9 ans",9,0)))) -> 9 | J45: si X ≥ 9 ans | K45: 9
A47: 3.2.D | B47: Capot | D47: si X ≥ 9 ans | E47: =IF(D47="si ND ou X < 5 ans",0,IF(D47="si 5 ans ≤ X < 7 ans",5,IF(D47="si 7 ans ≤ X < 9 ans",7,IF(D47="si X ≥ 9 ans",9,0)))) -> 9 | F47: si X ≥ 9 ans | G47: 9 | H47: si X ≥ 9 ans | I47: =IF(H47="si ND ou X < 5 ans",0,IF(H47="si 5 ans ≤ X < 7 ans",5,IF(H47="si 7 ans ≤ X < 9 ans",7,IF(H47="si X ≥ 9 ans",9,0)))) -> 9 | J47: si X ≥ 9 ans | K47: 9
A49: 3.2.E | B49: Moteur | D49: si 7 ans ≤ X < 9 ans | E49: =IF(D49="si ND ou X < 5 ans",0,IF(D49="si 5 ans ≤ X < 7 ans",5,IF(D49="si 7 ans ≤ X < 9 ans",7,IF(D49="si X ≥ 9 ans",9,0)))) -> 7 | F49: si 7 ans ≤ X < 9 ans | G49: 7 | H49: si 7 ans ≤ X < 9 ans | I49: =IF(H49="si ND ou X < 5 ans",0,IF(H49="si 5 ans ≤ X < 7 ans",5,IF(H49="si 7 ans ≤ X < 9 ans",7,IF(H49="si X ≥ 9 ans",9,0)))) -> 7 | J49: si 7 ans ≤ X < 9 ans | K49: 7
A51: 3.2.F | B51: Batterie | D51: si 7 ans ≤ X < 9 ans | E51: =IF(D51="si ND ou X < 5 ans",0,IF(D51="si 5 ans ≤ X < 7 ans",5,IF(D51="si 7 ans ≤ X < 9 ans",7,IF(D51="si X ≥ 9 ans",9,0)))) -> 7 | F51: si 7 ans ≤ X < 9 ans | G51: 7 | H51: si 7 ans ≤ X < 9 ans | I51: =IF(H51="si ND ou X < 5 ans",0,IF(H51="si 5 ans ≤ X < 7 ans",5,IF(H51="si 7 ans ≤ X < 9 ans",7,IF(H51="si X ≥ 9 ans",9,0)))) -> 7 | J51: si 7 ans ≤ X < 9 ans | K51: 7
A53: Total sous-critère 3.2 | E53: =SUM(E41:E52) -> 50 | G53: =SUM(G41:G52) -> 50 | I53: =SUM(I41:I52) -> 50 | K53: =SUM(K41:K52) -> 50 | L53: =E53+G53+I53+K53 -> 200 | M53: /216
L54: =L53*10/216 -> 9.259259259 | M54: /10
A56: SOUS-CRITÈRE 3.3 : ENGAGEMENT SUR LES DÉLAIS DE LIVRAISON DES PIÈCES DÉTACHÉES - PIÈCES PANNE / CASSE (LISTE 2)
A60: Engagement sur les délais de livraison (en jours ouvrables) | D60: Colonne A | F60: Colonne B | H60: Colonne C | J60: Colonne D
D61: Producteur | F61: Distributeurs de pièces détachées | H61: Réparateurs | J61: Consommateurs
A62: Liste 2 : Pièces panne / casse | D62: Délais de livraison | E62: Sous-total | F62: Délais de livraison | G62: Sous-total | H62: Délais de livraison | I62: Sous-total | J62: Délais de livraison | K62: Sous-total
A63: 3.3.A | B63: Lames | D63: si 10 j ≥ X > 5 j | E63: =IF(D63="si ND ou X>10 j",0,IF(D63="si 10 j ≥ X > 5 j",1,IF(D63="si 5 j ≥ X > 3 j",2, IF(D63="si X ≤ 3 j",3,0)))) -> 1 | F63: si 5 j ≥ X > 3 j | G63: =IF(F63="si ND ou X>10 j",0,IF(F63="si 10 j ≥ X > 5 j",1,IF(F63="si 5 j ≥ X > 3 j",2, IF(F63="si X ≤ 3 j",3,0)))) -> 2 | H63: si 5 j ≥ X > 3 j | I63: =IF(H63="si ND ou X>10 j",0,IF(H63="si 10 j ≥ X > 5 j",1,IF(H63="si 5 j ≥ X > 3 j",2, IF(H63="si X ≤ 3 j",3,0)))) -> 2 | J63: si 5 j ≥ X > 3 j | K63: =IF(J63="si ND ou X>10 j",0,IF(J63="si 10 j ≥ X > 5 j",1,IF(J63="si 5 j ≥ X > 3 j",2, IF(J63="si X ≤ 3 j",3,0)))) -> 2
A65: 3.3.B | B65: Porte lames | D65: si 10 j ≥ X > 5 j | E65: =IF(D65="si ND ou X>10 j",0,IF(D65="si 10 j ≥ X > 5 j",1,IF(D65="si 5 j ≥ X > 3 j",2, IF(D65="si X ≤ 3 j",3,0)))) -> 1 | F65: si 5 j ≥ X > 3 j | G65: =IF(F65="si ND ou X>10 j",0,IF(F65="si 10 j ≥ X > 5 j",1,IF(F65="si 5 j ≥ X > 3 j",2, IF(F65="si X ≤ 3 j",3,0)))) -> 2 | H65: si 5 j ≥ X > 3 j | I65: =IF(H65="si ND ou X>10 j",0,IF(H65="si 10 j ≥ X > 5 j",1,IF(H65="si 5 j ≥ X > 3 j",2, IF(H65="si X ≤ 3 j",3,0)))) -> 2 | J65: si 5 j ≥ X > 3 j | K65: =IF(J65="si ND ou X>10 j",0,IF(J65="si 10 j ≥ X > 5 j",1,IF(J65="si 5 j ≥ X > 3 j",2, IF(J65="si X ≤ 3 j",3,0)))) -> 2
A67: 3.3.C | B67: Interrupteur marche/arrêt | D67: si 10 j ≥ X > 5 j | E67: =IF(D67="si ND ou X>10 j",0,IF(D67="si 10 j ≥ X > 5 j",1,IF(D67="si 5 j ≥ X > 3 j",2, IF(D67="si X ≤ 3 j",3,0)))) -> 1 | F67: si 5 j ≥ X > 3 j | G67: 2 | H67: si 5 j ≥ X > 3 j | I67: =IF(H67="si ND ou X>10 j",0,IF(H67="si 10 j ≥ X > 5 j",1,IF(H67="si 5 j ≥ X > 3 j",2, IF(H67="si X ≤ 3 j",3,0)))) -> 2 | J67: si 5 j ≥ X > 3 j | K67: =IF(J67="si ND ou X>10 j",0,IF(J67="si 10 j ≥ X > 5 j",1,IF(J67="si 5 j ≥ X > 3 j",2, IF(J67="si X ≤ 3 j",3,0)))) -> 2
A69: 3.3.D | B69: Roues | D69: si 10 j ≥ X > 5 j | E69: =IF(D69="si ND ou X>10 j",0,IF(D69="si 10 j ≥ X > 5 j",1,IF(D69="si 5 j ≥ X > 3 j",2, IF(D69="si X ≤ 3 j",3,0)))) -> 1 | F69: si 5 j ≥ X > 3 j | G69: =IF(F69="si ND ou X>10 j",0,IF(F69="si 10 j ≥ X > 5 j",1,IF(F69="si 5 j ≥ X > 3 j",2, IF(F69="si X ≤ 3 j",3,0)))) -> 2 | H69: si 5 j ≥ X > 3 j | I69: =IF(H69="si ND ou X>10 j",0,IF(H69="si 10 j ≥ X > 5 j",1,IF(H69="si 5 j ≥ X > 3 j",2, IF(H69="si X ≤ 3 j",3,0)))) -> 2 | J69: si 5 j ≥ X > 3 j | K69: =IF(J69="si ND ou X>10 j",0,IF(J69="si 10 j ≥ X > 5 j",1,IF(J69="si 5 j ≥ X > 3 j",2, IF(J69="si X ≤ 3 j",3,0)))) -> 2
A71: Total sous-critère 3.3 | E71: =SUM(E63:E70) -> 4 | G71: =SUM(G63:G70) -> 8 | I71: =SUM(I63:I70) -> 8 | K71: =SUM(K63:K70) -> 8 | L71: =E71+G71+I71+K71 -> 28 | M71: =IF('C2_ACCES_DEMONTAGE'!E5="Non","/36","/48") -> /48
L72: =IF('C2_ACCES_DEMONTAGE'!E5="Non",L71*10/36,L71*10/48) -> 5.833333333 | M72: /10
A74: SOUS-CRITÈRE 3.4 : ENGAGEMENT SUR LES DÉLAIS DE LIVRAISON DES PIÈCES DÉTACHÉES - PIÈCES FONCTIONNELLES (LISTE 1)
A78: Engagement sur les délais de livraison (en jours ouvrables) | D78: Colonne A | F78: Colonne B | H78: Colonne C | J78: Colonne D
D79: Producteur | F79: Distributeurs de pièces détachées | H79: Réparateurs | J79: Consommateurs
A80: Liste 1 : Pièces fonctionnelles | D80: Délais de livraison | E80: Sous-total | F80: Délais de livraison | G80: Sous-total | H80: Délais de livraison | I80: Sous-total | J80: Délais de livraison | K80: Sous-total
A81: 3.4.A | B81: Guidon | D81: si 10 j ≥ X > 5 j | E81: =IF(D81="si ND ou X>10 j",0,IF(D81="si 10 j ≥ X > 5 j",1,IF(D81="si 5 j ≥ X > 3 j",2, IF(D81="si X ≤ 3 j",3,0)))) -> 1 | F81: si 5 j ≥ X > 3 j | G81: =IF(F81="si ND ou X>10 j",0,IF(F81="si 10 j ≥ X > 5 j",1,IF(F81="si 5 j ≥ X > 3 j",2, IF(F81="si X ≤ 3 j",3,0)))) -> 2 | H81: si 5 j ≥ X > 3 j | I81: =IF(H81="si ND ou X>10 j",0,IF(H81="si 10 j ≥ X > 5 j",1,IF(H81="si 5 j ≥ X > 3 j",2, IF(H81="si X ≤ 3 j",3,0)))) -> 2 | J81: si 5 j ≥ X > 3 j | K81: =IF(J81="si ND ou X>10 j",0,IF(J81="si 10 j ≥ X > 5 j",1,IF(J81="si 5 j ≥ X > 3 j",2, IF(J81="si X ≤ 3 j",3,0)))) -> 2
A83: 3.4.B | B83: Panier | D83: si 10 j ≥ X > 5 j | E83: =IF(D83="si ND ou X>10 j",0,IF(D83="si 10 j ≥ X > 5 j",1,IF(D83="si 5 j ≥ X > 3 j",2, IF(D83="si X ≤ 3 j",3,0)))) -> 1 | F83: si 5 j ≥ X > 3 j | G83: =IF(F83="si ND ou X>10 j",0,IF(F83="si 10 j ≥ X > 5 j",1,IF(F83="si 5 j ≥ X > 3 j",2, IF(F83="si X ≤ 3 j",3,0)))) -> 2 | H83: si 5 j ≥ X > 3 j | I83: =IF(H83="si ND ou X>10 j",0,IF(H83="si 10 j ≥ X > 5 j",1,IF(H83="si 5 j ≥ X > 3 j",2, IF(H83="si X ≤ 3 j",3,0)))) -> 2 | J83: si 5 j ≥ X > 3 j | K83: =IF(J83="si ND ou X>10 j",0,IF(J83="si 10 j ≥ X > 5 j",1,IF(J83="si 5 j ≥ X > 3 j",2, IF(J83="si X ≤ 3 j",3,0)))) -> 2
A85: 3.4.C | B85: Hauteur de coupe | D85: si 10 j ≥ X > 5 j | E85: =IF(D85="si ND ou X>10 j",0,IF(D85="si 10 j ≥ X > 5 j",1,IF(D85="si 5 j ≥ X > 3 j",2, IF(D85="si X ≤ 3 j",3,0)))) -> 1 | F85: si 5 j ≥ X > 3 j | G85: =IF(F85="si ND ou X>10 j",0,IF(F85="si 10 j ≥ X > 5 j",1,IF(F85="si 5 j ≥ X > 3 j",2, IF(F85="si X ≤ 3 j",3,0)))) -> 2 | H85: si 5 j ≥ X > 3 j | I85: =IF(H85="si ND ou X>10 j",0,IF(H85="si 10 j ≥ X > 5 j",1,IF(H85="si 5 j ≥ X > 3 j",2, IF(H85="si X ≤ 3 j",3,0)))) -> 2 | J85: si 5 j ≥ X > 3 j | K85: =IF(J85="si ND ou X>10 j",0,IF(J85="si 10 j ≥ X > 5 j",1,IF(J85="si 5 j ≥ X > 3 j",2, IF(J85="si X ≤ 3 j",3,0)))) -> 2
A87: 3.4.D | B87: Capot | D87: si 10 j ≥ X > 5 j | E87: =IF(D87="si ND ou X>10 j",0,IF(D87="si 10 j ≥ X > 5 j",1,IF(D87="si 5 j ≥ X > 3 j",2, IF(D87="si X ≤ 3 j",3,0)))) -> 1 | F87: si 5 j ≥ X > 3 j | G87: =IF(F87="si ND ou X>10 j",0,IF(F87="si 10 j ≥ X > 5 j",1,IF(F87="si 5 j ≥ X > 3 j",2, IF(F87="si X ≤ 3 j",3,0)))) -> 2 | H87: si 5 j ≥ X > 3 j | I87: =IF(H87="si ND ou X>10 j",0,IF(H87="si 10 j ≥ X > 5 j",1,IF(H87="si 5 j ≥ X > 3 j",2, IF(H87="si X ≤ 3 j",3,0)))) -> 2 | J87: si 5 j ≥ X > 3 j | K87: =IF(J87="si ND ou X>10 j",0,IF(J87="si 10 j ≥ X > 5 j",1,IF(J87="si 5 j ≥ X > 3 j",2, IF(J87="si X ≤ 3 j",3,0)))) -> 2
A89: 3.4.E | B89: Moteur | D89: si 10 j ≥ X > 5 j | E89: =IF(D89="si ND ou X>10 j",0,IF(D89="si 10 j ≥ X > 5 j",1,IF(D89="si 5 j ≥ X > 3 j",2, IF(D89="si X ≤ 3 j",3,0)))) -> 1 | F89: si 10 j ≥ X > 5 j | G89: =IF(F89="si ND ou X>10 j",0,IF(F89="si 10 j ≥ X > 5 j",1,IF(F89="si 5 j ≥ X > 3 j",2, IF(F89="si X ≤ 3 j",3,0)))) -> 1 | H89: si 10 j ≥ X > 5 j | I89: =IF(H89="si ND ou X>10 j",0,IF(H89="si 10 j ≥ X > 5 j",1,IF(H89="si 5 j ≥ X > 3 j",2, IF(H89="si X ≤ 3 j",3,0)))) -> 1 | J89: si 10 j ≥ X > 5 j | K89: =IF(J89="si ND ou X>10 j",0,IF(J89="si 10 j ≥ X > 5 j",1,IF(J89="si 5 j ≥ X > 3 j",2, IF(J89="si X ≤ 3 j",3,0)))) -> 1
A91: 3.4.F | B91: Batterie | D91: si 10 j ≥ X > 5 j | E91: =IF(D91="si ND ou X>10 j",0,IF(D91="si 10 j ≥ X > 5 j",1,IF(D91="si 5 j ≥ X > 3 j",2, IF(D91="si X ≤ 3 j",3,0)))) -> 1 | F91: si 5 j ≥ X > 3 j | G91: =IF(F91="si ND ou X>10 j",0,IF(F91="si 10 j ≥ X > 5 j",1,IF(F91="si 5 j ≥ X > 3 j",2, IF(F91="si X ≤ 3 j",3,0)))) -> 2 | H91: si 5 j ≥ X > 3 j | I91: =IF(H91="si ND ou X>10 j",0,IF(H91="si 10 j ≥ X > 5 j",1,IF(H91="si 5 j ≥ X > 3 j",2, IF(H91="si X ≤ 3 j",3,0)))) -> 2 | J91: si 5 j ≥ X > 3 j | K91: =IF(J91="si ND ou X>10 j",0,IF(J91="si 10 j ≥ X > 5 j",1,IF(J91="si 5 j ≥ X > 3 j",2, IF(J91="si X ≤ 3 j",3,0)))) -> 2
A93: Total sous-critère 3.4 | E93: =SUM(E81:E92) -> 6 | G93: =SUM(G81:G92) -> 11 | I93: =SUM(I81:I92) -> 11 | K93: =SUM(K81:K92) -> 11 | L93: =E93+G93+I93+K93 -> 39 | M93: /72
L94: =L93*10/72 -> 5.416666667 | M94: /10

Sheet C4_PRIX
A1: CRITÈRE 4 : PRIX DES PIÈCES DÉTACHÉES | L1: Tondeuse à gazon électrique sur batterie
A4: PRECISIONS : | M4: Rappel des dispositions réglementaires « Sous-critère 4.1. Rapport entre le prix de vente des pièces par le constructeur ou l’importateur et le prix de vente des équipements par le constructeur ou l’importateur. Le critère est établi en faisant le rapport entre : le prix hors taxe de la pièce la plus chère de la liste 2 + (moyenne des prix hors taxe des autres pièces de la liste 2)/2 et le prix hors taxe du modèle de l’équipement concerné, où chaque prix s’entend comme le prix hors taxes du barème tarifaire en vigueur au moment du calcul de l’indice et figurant dans les conditions générales de vente du fabricant ou de l’importateur, ou à défaut dans tout document contractuel pertinent. Dans le cas où un fabricant ou un importateur dispose, pour les pièces ou les équipements considérés, de plusieurs barèmes tarifaires selon les différentes catégories de clients distributeurs ou vendeurs, les prix retenus pour le calcul de l’indice sont ceux du barème ayant représenté la part la plus élevée du chiffre d’affaires du fabricant ou de l’importateur pour le type de pièces ou le type d’équipement concernés, au cours du dernier exercice clos. Dans le cas où certaines de ces pièces sont indissociables ou bien dans le cas où la pièce visée est intégrée à un module, qui est seul disponible, le prix à prendre en compte est le prix cumulé des pièces ou le prix du module. »
A5: Déduction des frais de livraison : Le principe retenu est de procéder à un calcul hors frais de transport ou de livraison. Si ces derniers sont
A6: inclus dans les tarifs des conditions générales de vente, il appartient au producteur ou importateur de les déduire pour procéder au calcul
A7: du ratio. En particulier pour le prix des pièces détachées, deux modalités sont possibles pour déduire les frais de transport ou de livraison :
A8: unitairement pour chacune des pièces de la liste 2 ou forfaitairement (en valeur absolue ou en pourcentage). Il en va de même pour le prix
A9: de l’équipement neuf.
A10: Pièce(s) détachée(s) faisant partie d’un lot : Dans le cas où l’une ou plusieurs des pièces de la liste 2 font parties d’un lot proposé à la vente
A11: ou de tout autre sous-ensemble de pièces indissociables, le prix de la pièce concernée est le prix de ce sous ensemble.
A12: Pièce non disponible : Dans le cas où, au moment du calcul de l’indice, une pièce de la liste 2 n’est pas disponible, le nombre de points
A13: attribués pour le critère 4 relatif aux prix des pièces détachées est 0.
A14: Pièces non gérées par le producteur ou l’importateur : Dans le cas où des pièces de la liste 2 ne sont pas gérées par le producteur ou
A15: l’importateur, le prix des pièces à considérer est alors celui des conditions générales de vente du fournisseur au moment du calcul de
A16: l’indice.
A17: Options de produits portant la même référence : Dans le cas où les options sont proposées pour la même référence, et qu’elles n’ont pas
A18: d’influence sur les caractéristiques techniques aux fins du calcul de l’indice, alors le calcul du ratio prix à réaliser à partir du prix des
A19: pièces détachées et du prix de la version la plus courante du produit concerné.
A20: Absence d’une pièce : Si l’équipement ne comporte pas une pièce listée dans la liste 1 ou 2 de la catégorie concernée alors le prix de la pièce
A21: absente n’apparait pas dans le calcul du ratio.
M22: CAS PARTICULIER DE LA TONDEUSE À GAZON ELECTRIQUE
M23: Dans le cas où l'équipement neuf est vendu sans batterie, le prix de l'équipement à considérer pour le calcul du critère 4 relatif aux prix des pièces détachées doit inclure le prix d'une batterie compatible avec l'équipement au moment du calcul de l'indice de réparabilité.
A24: Critère PRIX | G24: Notation
G25: Valeur (en euros) | H25: Score (en %) | I25: POINTS (/100) | J25: NOTE (/10)
A27: Prix hors taxe de la pièce la plus chère (liste 2) | G27: 21.52 | H27: =IF(ISERROR((($G$27+($G$28))/2)/$G$29),"0%",((($G$27+($G$28))/A45)/$G$29)) -> 0.03183574879 | I27: =IF(M27<0,0,IF(M27>100,100,MROUND(M27,5))) -> 100 | J27: =IF(M27/10<0,0,IF(M27/10>=10,10,MROUND(M27,5)/10)) -> 10 | K27: =IF(I27<0,"NOTE DE ZERO CAR SCORE HORS BAREME DE NOTATION") -> FALSE | M27: =IF(FORECAST($H$27,A43:A143,B43:B143)=150,0,FORECAST($H$27,A43:A143,B43:B143)) -> 134.0821256 | N27: =IF(M27/10<0,0,IF(M27/10>=10,10,M27/10 )) -> 10
A28: Moyenne hors taxe des prix des autres pièces (liste 2) | G28: 11.43
A29: Prix hors taxe du modèle de l'équipement concerné | G29: 517.5
A34: Le nombre de points obtenu pour ce critère est déterminé de la façon suivante :
A35: - si le résultat du rapport est supérieur à 0,3 alors le nombre de points est 0 ;
A36: - si le résultat du rapport est inférieur à 0,1 alors le nombre de points est 100 ;
A37: - si le résultat du rapport est compris entre 0,1 et 0,3 alors le nombre de points est déterminé selon le tableau de correspondance
A38: suivant :
A40: DATA
A42: y | B42: x | C42: a | D42: b | E42: y ' | G42: x '
A43: 0 | B43: =$C$43*A43+$D$43 -> 0.3 | C43: -0.002 | D43: 0.3 | E43: 100 | F43: 0 | G43: =$C$43*E43+$D$43 -> 0.1 | H43: =IF($H$27>=G43,$H$27,IF($H$27<G43,-2.2)) -> -2.2 | I43: 0.2
A44: 1 | B44: 0.298 | C44: -0.2 | D44: 0.3 | E44: 99 | F44: 0 | G44: 0.102 | H44: =IF($H$27>=G44,$H$27,IF($H$27<G44,-2.2)) -> -2.2 | I44: 0.2
A45: 2 | B45: 0.296 | C45: -0.2 | D45: 0.3 | E45: 98 | F45: 0 | G45: 0.104 | H45: -2.2 | I45: 0.2
A46: 3 | B46: 0.294 | C46: -0.2 | D46: 0.3 | E46: 97 | F46: 0 | G46: 0.106 | H46: -2.2 | I46: 0.2
A47: 4 | B47: 0.292 | C47: -0.2 | D47: 0.3 | E47: 96 | F47: 0 | G47: 0.108 | H47: -2.2 | I47: 0.2
A48: 5 | B48: 0.29 | C48: -0.2 | D48: 0.3 | E48: 95 | F48: 0 | G48: 0.11 | H48: -2.2 | I48: 0.2
A49: 6 | B49: 0.288 | C49: -0.2 | D49: 0.3 | E49: 94 | F49: 0 | G49: 0.112 | H49: -2.2 | I49: 0.2
A50: 7 | B50: 0.286 | C50: -0.2 | D50: 0.3 | E50: 93 | F50: 0 | G50: 0.114 | H50: -2.2 | I50: 0.2
A51: 8 | B51: 0.284 | C51: -0.2 | D51: 0.3 | E51: 92 | F51: 0 | G51: 0.116 | H51: -2.2 | I51: 0.2
A52: 9 | B52: 0.282 | C52: -0.2 | D52: 0.3 | E52: 91 | F52: 0 | G52: 0.118 | H52: -2.2 | I52: 0.2
A53: 10 | B53: 0.28 | C53: -0.2 | D53: 0.3 | E53: 90 | F53: 0 | G53: 0.12 | H53: -2.2 | I53: 0.2
A54: 11 | B54: 0.278 | C54: -0.2 | D54: 0.3 | E54: 89 | F54: 0 | G54: 0.122 | H54: -2.2 | I54: 0.2
A55: 12 | B55: 0.276 | C55: -0.2 | D55: 0.3 | E55: 88 | F55: 0 | G55: 0.124 | H55: -2.2 | I55: 0.2
A56: 13 | B56: 0.274 | C56: -0.2 | D56: 0.3 | E56: 87 | F56: 0 | G56: 0.126 | H56: -2.2 | I56: 0.2
A57: 14 | B57: 0.272 | C57: -0.2 | D57: 0.3 | E57: 86 | F57: 0 | G57: 0.128 | H57: -2.2 | I57: 0.2
A58: 15 | B58: 0.27 | C58: -0.2 | D58: 0.3 | E58: 85 | F58: 0 | G58: 0.13 | H58: -2.2 | I58: 0.2
A59: 16 | B59: 0.268 | C59: -0.2 | D59: 0.3 | E59: 84 | F59: 0 | G59: 0.132 | H59: -2.2 | I59: 0.2
A60: 17 | B60: 0.266 | C60: -0.2 | D60: 0.3 | E60: 83 | F60: 0 | G60: 0.134 | H60: -2.2 | I60: 0.2
A61: 18 | B61: 0.264 | C61: -0.2 | D61: 0.3 | E61: 82 | F61: 0 | G61: 0.136 | H61: -2.2 | I61: 0.2
A62: 19 | B62: 0.262 | C62: -0.2 | D62: 0.3 | E62: 81 | F62: 0 | G62: 0.138 | H62: -2.2 | I62: 0.2
A63: 20 | B63: 0.26 | C63: -0.2 | D63: 0.3 | E63: 80 | F63: 0 | G63: 0.14 | H63: -2.2 | I63: 0.2
A64: 21 | B64: 0.258 | C64: -0.2 | D64: 0.3 | E64: 79 | F64: 0 | G64: 0.142 | H64: -2.2 | I64: 0.2
A65: 22 | B65: 0.256 | C65: -0.2 | D65: 0.3 | E65: 78 | F65: 0 | G65: 0.144 | H65: -2.2 | I65: 0.2
A66: 23 | B66: 0.254 | C66: -0.2 | D66: 0.3 | E66: 77 | F66: 0 | G66: 0.146 | H66: -2.2 | I66: 0.2
A67: 24 | B67: 0.252 | C67: -0.2 | D67: 0.3 | E67: 76 | F67: 0 | G67: 0.148 | H67: -2.2 | I67: 0.2
A68: 25 | B68: 0.25 | C68: -0.2 | D68: 0.3 | E68: 75 | F68: 0 | G68: 0.15 | H68: -2.2 | I68: 0.2
A69: 26 | B69: 0.248 | C69: -0.2 | D69: 0.3 | E69: 74 | F69: 0 | G69: 0.152 | H69: -2.2 | I69: 0.2
A70: 27 | B70: 0.246 | C70: -0.2 | D70: 0.3 | E70: 73 | F70: 0 | G70: 0.154 | H70: -2.2 | I70: 0.2
A71: 28 | B71: 0.244 | C71: -0.2 | D71: 0.3 | E71: 72 | F71: 0 | G71: 0.156 | H71: -2.2 | I71: 0.2
A72: 29 | B72: 0.242 | C72: -0.2 | D72: 0.3 | E72: 71 | F72: 0 | G72: 0.158 | H72: -2.2 | I72: 0.2
A73: 30 | B73: 0.24 | C73: -0.2 | D73: 0.3 | E73: 70 | F73: 0 | G73: 0.16 | H73: -2.2 | I73: 0.2
A74: 31 | B74: 0.238 | C74: -0.2 | D74: 0.3 | E74: 69 | F74: 0 | G74: 0.162 | H74: -2.2 | I74: 0.2
A75: 32 | B75: 0.236 | C75: -0.2 | D75: 0.3 | E75: 68 | F75: 0 | G75: 0.164 | H75: -2.2 | I75: 0.2
A76: 33 | B76: 0.234 | C76: -0.2 | D76: 0.3 | E76: 67 | F76: 0 | G76: 0.166 | H76: -2.2 | I76: 0.2
A77: 34 | B77: 0.232 | C77: -0.2 | D77: 0.3 | E77: 66 | F77: 0 | G77: 0.168 | H77: -2.2 | I77: 0.2
A78: 35 | B78: 0.23 | C78: -0.2 | D78: 0.3 | E78: 65 | F78: 0 | G78: 0.17 | H78: -2.2 | I78: 0.2
A79: 36 | B79: 0.228 | C79: -0.2 | D79: 0.3 | E79: 64 | F79: 0 | G79: 0.172 | H79: -2.2 | I79: 0.2
A80: 37 | B80: 0.226 | C80: -0.2 | D80: 0.3 | E80: 63 | F80: 0 | G80: 0.174 | H80: -2.2 | I80: 0.2
A81: 38 | B81: 0.224 | C81: -0.2 | D81: 0.3 | E81: 62 | F81: 0 | G81: 0.176 | H81: -2.2 | I81: 0.2
A82: 39 | B82: 0.222 | C82: -0.2 | D82: 0.3 | E82: 61 | F82: 0 | G82: 0.178 | H82: -2.2 | I82: 0.2
A83: 40 | B83: 0.22 | C83: -0.2 | D83: 0.3 | E83: 60 | F83: 0 | G83: 0.18 | H83: -2.2 | I83: 0.2
A84: 41 | B84: 0.218 | C84: -0.2 | D84: 0.3 | E84: 59 | F84: 0 | G84: 0.182 | H84: -2.2 | I84: 0.2
A85: 42 | B85: 0.216 | C85: -0.2 | D85: 0.3 | E85: 58 | F85: 0 | G85: 0.184 | H85: -2.2 | I85: 0.2
A86: 43 | B86: 0.214 | C86: -0.2 | D86: 0.3 | E86: 57 | F86: 0 | G86: 0.186 | H86: -2.2 | I86: 0.2
A87: 44 | B87: 0.212 | C87: -0.2 | D87: 0.3 | E87: 56 | F87: 0 | G87: 0.188 | H87: -2.2 | I87: 0.2
A88: 45 | B88: 0.21 | C88: -0.2 | D88: 0.3 | E88: 55 | F88: 0 | G88: 0.19 | H88: -2.2 | I88: 0.2
A89: 46 | B89: 0.208 | C89: -0.2 | D89: 0.3 | E89: 54 | F89: 0 | G89: 0.192 | H89: -2.2 | I89: 0.2
A90: 47 | B90: 0.206 | C90: -0.2 | D90: 0.3 | E90: 53 | F90: 0 | G90: 0.194 | H90: -2.2 | I90: 0.2
A91: 48 | B91: 0.204 | C91: -0.2 | D91: 0.3 | E91: 52 | F91: 0 | G91: 0.196 | H91: -2.2 | I91: 0.2
A92: 49 | B92: 0.202 | C92: -0.2 | D92: 0.3 | E92: 51 | F92: 0 | G92: 0.198 | H92: -2.2 | I92: 0.2
A93: 50 | B93: 0.2 | C93: -0.2 | D93: 0.3 | E93: 50 | F93: 0.2 | G93: 0.2 | H93: -2.2 | I93: 0.2
A94: 51 | B94: 0.198 | C94: -0.2 | D94: 0.3 | E94: 49 | F94: 0.2 | G94: 0.202 | H94: =IF($H$27>=G94,$H$27,IF($H$27<G94,-2.2)) -> -2.2 | I94: -2.2
A95: 52 | B95: 0.196 | C95: -0.2 | D95: 0.3 | E95: 48 | F95: 0.2 | G95: 0.204 | H95: -2.2 | I95: -2.2
A96: 53 | B96: 0.194 | C96: -0.2 | D96: 0.3 | E96: 47 | F96: 0.2 | G96: 0.206 | H96: -2.2 | I96: -2.2
A97: 54 | B97: 0.192 | C97: -0.2 | D97: 0.3 | E97: 46 | F97: 0.2 | G97: 0.208 | H97: -2.2 | I97: -2.2
A98: 55 | B98: 0.19 | C98: -0.2 | D98: 0.3 | E98: 45 | F98: 0.2 | G98: 0.21 | H98: -2.2 | I98: -2.2
A99: 56 | B99: 0.188 | C99: -0.2 | D99: 0.3 | E99: 44 | F99: 0.2 | G99: 0.212 | H99: -2.2 | I99: -2.2
A100: 57 | B100: 0.186 | C100: -0.2 | D100: 0.3 | E100: 43 | F100: 0.2 | G100: 0.214 | H100: -2.2 | I100: -2.2
A101: 58 | B101: 0.184 | C101: -0.2 | D101: 0.3 | E101: 42 | F101: 0.2 | G101: 0.216 | H101: -2.2 | I101: -2.2
A102: 59 | B102: 0.182 | C102: -0.2 | D102: 0.3 | E102: 41 | F102: 0.2 | G102: 0.218 | H102: -2.2 | I102: -2.2
A103: 60 | B103: 0.18 | C103: -0.2 | D103: 0.3 | E103: 40 | F103: 0.2 | G103: 0.22 | H103: -2.2 | I103: -2.2
A104: 61 | B104: 0.178 | C104: -0.2 | D104: 0.3 | E104: 39 | F104: 0.2 | G104: 0.222 | H104: -2.2 | I104: -2.2
A105: 62 | B105: 0.176 | C105: -0.2 | D105: 0.3 | E105: 38 | F105: 0.2 | G105: 0.224 | H105: =IF($H$27>=G105,$H$27,IF($H$27<G105,-2.2)) -> -2.2 | I105: -2.2
A106: 63 | B106: 0.174 | C106: -0.2 | D106: 0.3 | E106: 37 | F106: 0.2 | G106: 0.226 | H106: -2.2 | I106: -2.2
A107: 64 | B107: =$C$43*A107+$D$43 -> 0.172 | C107: -0.2 | D107: 0.3 | E107: 36 | F107: 0.2 | G107: =$C$43*E107+$D$43 -> 0.228 | H107: -2.2 | I107: -2.2
A108: 65 | B108: 0.17 | C108: -0.2 | D108: 0.3 | E108: 35 | F108: 0.2 | G108: 0.23 | H108: =IF($H$27>=G108,$H$27,IF($H$27<G108,-2.2)) -> -2.2 | I108: -2.2
A109: 66 | B109: 0.168 | C109: -0.2 | D109: 0.3 | E109: 34 | F109: 0.2 | G109: 0.232 | H109: -2.2 | I109: -2.2
A110: 67 | B110: 0.166 | C110: -0.2 | D110: 0.3 | E110: 33 | F110: 0.2 | G110: 0.234 | H110: -2.2 | I110: -2.2
A111: 68 | B111: 0.164 | C111: -0.2 | D111: 0.3 | E111: 32 | F111: 0.2 | G111: 0.236 | H111: -2.2 | I111: -2.2
A112: 69 | B112: 0.162 | C112: -0.2 | D112: 0.3 | E112: 31 | F112: 0.2 | G112: 0.238 | H112: -2.2 | I112: -2.2
A113: 70 | B113: 0.16 | C113: -0.2 | D113: 0.3 | E113: 30 | F113: 0.2 | G113: 0.24 | H113: -2.2 | I113: -2.2
A114: 71 | B114: 0.158 | C114: -0.2 | D114: 0.3 | E114: 29 | F114: 0.2 | G114: 0.242 | H114: -2.2 | I114: -2.2
A115: 72 | B115: 0.156 | C115: -0.2 | D115: 0.3 | E115: 28 | F115: 0.2 | G115: 0.244 | H115: -2.2 | I115: -2.2
A116: 73 | B116: 0.154 | C116: -0.2 | D116: 0.3 | E116: 27 | F116: 0.2 | G116: 0.246 | H116: -2.2 | I116: -2.2
A117: 74 | B117: 0.152 | C117: -0.2 | D117: 0.3 | E117: 26 | F117: 0.2 | G117: 0.248 | H117: -2.2 | I117: -2.2
A118: 75 | B118: 0.15 | C118: -0.2 | D118: 0.3 | E118: 25 | F118: 0.2 | G118: 0.25 | H118: -2.2 | I118: -2.2
A119: 76 | B119: 0.148 | C119: -0.2 | D119: 0.3 | E119: 24 | F119: 0.2 | G119: 0.252 | H119: -2.2 | I119: -2.2
A120: 77 | B120: 0.146 | C120: -0.2 | D120: 0.3 | E120: 23 | F120: 0.2 | G120: 0.254 | H120: -2.2 | I120: -2.2
A121: 78 | B121: 0.144 | C121: -0.2 | D121: 0.3 | E121: 22 | F121: 0.2 | G121: 0.256 | H121: -2.2 | I121: -2.2
A122: 79 | B122: 0.142 | C122: -0.2 | D122: 0.3 | E122: 21 | F122: 0.2 | G122: 0.258 | H122: -2.2 | I122: -2.2
A123: 80 | B123: 0.14 | C123: -0.2 | D123: 0.3 | E123: 20 | F123: 0.2 | G123: 0.26 | H123: -2.2 | I123: -2.2
A124: 81 | B124: 0.138 | C124: -0.2 | D124: 0.3 | E124: 19 | F124: 0.2 | G124: 0.262 | H124: -2.2 | I124: -2.2
A125: 82 | B125: 0.136 | C125: -0.2 | D125: 0.3 | E125: 18 | F125: 0.2 | G125: 0.264 | H125: -2.2 | I125: -2.2
A126: 83 | B126: 0.134 | C126: -0.2 | D126: 0.3 | E126: 17 | F126: 0.2 | G126: 0.266 | H126: -2.2 | I126: -2.2
A127: 84 | B127: 0.132 | C127: -0.2 | D127: 0.3 | E127: 16 | F127: 0.2 | G127: 0.268 | H127: -2.2 | I127: -2.2
A128: 85 | B128: 0.13 | C128: -0.2 | D128: 0.3 | E128: 15 | F128: 0.2 | G128: 0.27 | H128: -2.2 | I128: -2.2
A129: 86 | B129: 0.128 | C129: -0.2 | D129: 0.3 | E129: 14 | F129: 0.2 | G129: 0.272 | H129: -2.2 | I129: -2.2
A130: 87 | B130: 0.126 | C130: -0.2 | D130: 0.3 | E130: 13 | F130: 0.2 | G130: 0.274 | H130: -2.2 | I130: -2.2
A131: 88 | B131: 0.124 | C131: -0.2 | D131: 0.3 | E131: 12 | F131: 0.2 | G131: 0.276 | H131: -2.2 | I131: -2.2
A132: 89 | B132: 0.122 | C132: -0.2 | D132: 0.3 | E132: 11 | F132: 0.2 | G132: 0.278 | H132: -2.2 | I132: -2.2
A133: 90 | B133: 0.12 | C133: -0.2 | D133: 0.3 | E133: 10 | F133: 0.2 | G133: 0.28 | H133: -2.2 | I133: -2.2
A134: 91 | B134: 0.118 | C134: -0.2 | D134: 0.3 | E134: 9 | F134: 0.2 | G134: 0.282 | H134: -2.2 | I134: -2.2
A135: 92 | B135: 0.116 | C135: -0.2 | D135: 0.3 | E135: 8 | F135: 0.2 | G135: 0.284 | H135: -2.2 | I135: -2.2
A136: 93 | B136: 0.114 | C136: -0.2 | D136: 0.3 | E136: 7 | F136: 0.2 | G136: 0.286 | H136: -2.2 | I136: -2.2
A137: 94 | B137: 0.112 | C137: -0.2 | D137: 0.3 | E137: 6 | F137: 0.2 | G137: 0.288 | H137: -2.2 | I137: -2.2
A138: 95 | B138: 0.11 | C138: -0.2 | D138: 0.3 | E138: 5 | F138: 0.2 | G138: 0.29 | H138: -2.2 | I138: -2.2
A139: 96 | B139: =$C$43*A139+$D$43 -> 0.108 | C139: -0.2 | D139: 0.3 | E139: 4 | F139: 0.2 | G139: 0.292 | H139: -2.2 | I139: -2.2
A140: 97 | B140: =$C$43*A140+$D$43 -> 0.106 | C140: -0.2 | D140: 0.3 | E140: 3 | F140: 0.2 | G140: 0.294 | H140: -2.2 | I140: -2.2
A141: 98 | B141: =$C$43*A141+$D$43 -> 0.104 | C141: -0.2 | D141: 0.3 | E141: 2 | F141: 0.2 | G141: 0.296 | H141: -2.2 | I141: -2.2
A142: 99 | B142: =$C$43*A142+$D$43 -> 0.102 | C142: -0.2 | D142: 0.3 | E142: 1 | F142: 0.2 | G142: 0.298 | H142: -2.2 | I142: -2.2
A143: 100 | B143: =$C$43*A143+$D$43 -> 0.1 | C143: -0.2 | D143: 0.3 | E143: 0 | F143: 0.2 | G143: 0.3 | H143: -2.2 | I143: -2.2

Sheet C5_SPECIFIQUE
A1: CRITÈRE 5 : CRITÈRE SPÉCIFIQUE | J1: Tondeuse à gazon électrique sur batterie
A4: SOUS-CRITÈRE 5.1 : ASSISTANCE À DISTANCE SANS FRAIS
A6: PRÉCISIONS :
A7: - Une assistance à distance comprend tout système ayant pour but de faciliter la recherche d'informations en cas de panne, de renseignements pour
A8: identifier l’origine d’une panne ou d'aide à distance pour effectuer la réparation. En cas d'aide à la réparation à distance, le dispositif doit être
A9: capable de fournir un accompagnement technique et précis à l'utilisateur.
A10: - Les dispositifs d'assistance à distance comprennent : les informations à distance (site internet, FAQ, etc.), l'aide au diagnostic à distance (ligne
A11: d'appel téléphonique, tchat, application incluse dans l'équipement, arbre de décision interactif, etc.) et l'aide à la réparation à distance (ligne
A12: d'appel téléphonique, appel par visio, prise en main de l'appareil à distance, etc.)
A13: - Les dispositifs d'aide à distance doivent être intégralement gratuits (y compris les appels téléphoniques dans le cas d'une hotline).
A17: Assistance à distance | F17: Colonne B | H17: Colonne C
F18: Réparateurs | H18: Consommateurs
F19: Situation (aucun/site internet) | G19: Sous-total | H19: Situation | I19: Sous-total
A20: 5.1.A | B20: Type d'assistance à distance | F20: Informations à jour sur site internet | G20: =IF(F20="Aucun",0,IF(F20="Informations à jour sur site internet",1,0)) -> 1 | H20: B : Informations à distance | I20: =IF(H20="A : Aucun",0,IF(H20="B : Informations à distance",1,IF(H20="C : Aide au diagnostic à distance",2,))) -> 1
A21: Total sous-critère 5.1 | G21: =SUM(G20:G20) -> 1 | I21: =SUM(I20:I20) -> 1 | J21: =SUM(E21,G21,I21) -> 2 | K21: /3
J22: =J21*10/3 -> 6.666666667 | K22: /10
A24: SOUS-CRITÈRE 5.2 : UTILISATION D'UNE BATTERIE MULTI-PRODUITS
A26: PRÉCISION :
A27: - L'utilisation d'une batterie multi-produits est déterminée par la possibilité d'utiliser une batterie pouvant être compatible avec plusieurs
A28: équipements de la gamme de la marque (en indiquant les références de la gamme compatible). Ce sous-critère ne s'applique donc pas aux batteries
A29: monospécifiques, c'est-à-dire, celles compatibles pour une unique référence de la marque de l'équipement.
A33: Batterie multi-produits | D33: Colonne C
D34: Consommateurs
D35: Situation | E35: Sous-total
A36: 5.2.A | B36: Possibilité d'utiliser d'une batterie multi-produits | D36: Satisfait | E36: =IF(D36="Non satisfait",0,IF(D36="Satisfait",1,0)) -> 1
A37: Total sous-critère 5.2 | E37: =SUM(E36:E36) -> 1 | F37: /1
E38: =E37*10 -> 10 | F38: /10

Sheet NOTE_FINALE
A1: CALCUL DE L'INDICE DE RÉPARABILITÉ ET PRÉSENTATION DES PARAMÈTRES AYANT PERMIS DE L'ÉTABLIR | E1: Tondeuse à gazon électrique sur batterie
A4: FICHE D'INFORMATION À TRANSMETTRE AUX DEMANDEURS (cf. Article L. 541-9-2 du Code de l’environnement)
A6: Date du calcul | C6: =INFORMATION_PRODUIT!C6 -> 44585
A7: Nom ou marque commerciale du fournisseur | C7: =INFORMATION_PRODUIT!C18 -> Toro | D7: ='C2_ACCES_DEMONTAGE'!D15 -> 0 | E7: ='C2_ACCES_DEMONTAGE'!E15 -> 0
A8: Adresse du fournisseur | C8: =INFORMATION_PRODUIT!C19 -> 8111 Lyndale Ave South Bloomington MN 55420-1196 USA | D8: ='C2_ACCES_DEMONTAGE'!D16 -> 0 | E8: ='C2_ACCES_DEMONTAGE'!E16 -> 0
A9: Référence du modèle donnée par le fournisseur | C9: =INFORMATION_PRODUIT!C20 -> 21836 | D9: ='C2_ACCES_DEMONTAGE'!D17 -> 0 | E9: ='C2_ACCES_DEMONTAGE'!E17 -> 0
A11: Critère | B11: Sous-critère | E11: Note du sous-critère sur 10 | F11: Coefficient du sous critère | G11: Note du critère sur 20 | H11: Total des notes des critères sur 100
A16: CRITÈRE 1 : DOCUMENTATION | B16: 1.1 Durée de disponibilité de la documentation technique et relative aux conseils d'utilisation et d'entretien | E16: ='C1_DOCUMENTATION'!H45 -> 10 | F16: 2 | G16: =(E16*F16) -> 20 | H16: =SUM(G16:G27) -> 94.12962963
A17: CRITÈRE 2 : DÉMONTABILITÉ, ACCÈS, OUTILS, FIXATIONS | B17: 2.1 Facilité de démontage des pièces de la liste 2* | E17: ='C2_ACCES_DEMONTAGE'!E30 -> 10 | F17: 1 | G17: =(F17*E17)+(F18*E18)+(F19*E19) -> 20
B18: 2.2 Outils nécessaires (liste 2) | E18: ='C2_ACCES_DEMONTAGE'!E56 -> 10 | F18: 0.5
B19: 2.3 Caractéristiques des fixations entre les pièces de la liste 1** et de la liste 2 | E19: ='C2_ACCES_DEMONTAGE'!E96 -> 10 | F19: 0.5
A20: CRITÈRE 3 : DISPONIBILITÉ DES PIÈCES DÉTACHÉES | B20: 3.1 Durée de disponibilité des pièces de la liste 2 | E20: ='C3_DISPONIBILITE_PD'!L32 -> 10 | F20: 1 | G20: =(F20*E20)+(F21*E21)+(F22*E22)+(F23*E23) -> 17.46296296
B21: 3.2 Durée de disponibilité des pièces de la liste 1 | E21: ='C3_DISPONIBILITE_PD'!L54 -> 9.259259259 | F21: 0.5
B22: 3.3 Délais de livraison des pièces de la liste 2 | E22: ='C3_DISPONIBILITE_PD'!L72 -> 5.833333333 | F22: 0.3
B23: 3.4 Délais de livraison des pièces de la liste 1 | E23: ='C3_DISPONIBILITE_PD'!L94 -> 5.416666667 | F23: 0.2
A24: CRITÈRE 4 : PRIX DES PIÈCES DÉTACHÉES | B24: 4. Rapport prix des pièces de la liste 2 sur prix de l’équipement neuf | E24: ='C4_PRIX'!J27 -> 10 | F24: 2 | G24: =E24*F24 -> 20
A25: CRITÈRE 5 : CRITÈRE SPÉCIFIQUE | B25: 5.1 Assistance à distance sans frais | E25: ='C5_SPECIFIQUE'!J22 -> 6.666666667 | F25: 1 | G25: =F25*E25+F26*E26 -> 16.66666667
B26: 5.2 Utilisation d'une batterire multi-produits | E26: ='C5_SPECIFIQUE'!E38 -> 10 | F26: 1
A28: Note de l'indice sur 10 | H28: =ROUND(H16/10,1) -> 9.4
A30: *liste 2 : liste des 3 à 5 pièces détachées au maximum (selon la catégorie d’équipements concernée) dont la casse ou les pannes sont les plus fréquentes ; **liste 1 : liste de 10 autres pièces détachées au maximum (selon la catégorie d’équipements concernée) dont le bon état est nécessaire au fonctionnement de l’équipement.

Sheet ANNEXE_1
A1: ANNEXE 1 : TERMINOLOGIE UTILISÉE DANS LE CADRE DU CALCUL DE L'INDICE DE RÉPARABILITÉ
A4: GLOSSAIRE : Les définitions des termes suivants sont précisées dans le décret relatif à l’indice de réparabilité des équipements électriques et électroniques : « Mise à disposition sur le marché », « Mise sur le marché », « producteur », « importateur », « distributeur », « vendeur », « vente à distance », « modèle ».
A6: Réparateur agréé | B6: Le réparateur agréé est souvent désigné sous le terme de stations techniques ou de centres de services agréés. Il s’agit d’un réparateur professionnel pour lequel un ou plusieurs contrats définissent précisément la relation entre le réparateur agréé et le ou les producteurs. | C6: Basé sur l'expertise technique des groupes de travail de l'indice de réparabilité.
A7: Réparateur indépendant | B7: Les réparateurs indépendants sont les réparateurs au sens « d’artisans réparateurs professionnels » désignant les entreprises de la réparation inscrites au répertoire des métiers avec un code APE ou NAFA. Il s’agit de réparateur professionnel n’entrant pas dans la catégorie des réparateurs agréés. Par exemple, 95.11 Z-Z : Réparation d'ordinateurs et d'équipements périphériques; 95.21 Z-Z : Réparation de télévisions, récepteurs radio, Magnétoscopes, lecteurs de CD et DVD, caméscopes destinés à un usage domestique; 95. 22 Z-Z : Réparation d'appareils électroménagers et d'équipements pour la maison et le jardin.
A8: Réparateur professionnel | B8: Réparateur agréé ou réparateur indépendant.
A9: Distributeur en pièces détachées | B9: Toute personne physique ou morale faisant partie de la chaîne d'approvisionnement, autre que le producteur ou l'importateur, qui propose à la vente une pièce détachée. Ils sont communément appelés « grossistes en pièces détachés ». | C9: D'après la Norme NF EN 45554 "Méthodes générales pour l'évaluation de la capacité de réparation, réutilisation et amélioration des produits liés à l'énergie", 2020.
A10: Démontage | B10: Processus par lequel un produit, une pièce détachée ou une fixation est démonté(e) de manière à pouvoir ensuite être remonté(e) et rendu(e) opérationnel(le).
A11: Remontage | B11: Processus par lequel un produit, une pièce détachée ou une fixation est remonté(e) de manière ensuite à remplir son rôle fonctionnel(le) et être rendu(e) opérationnel(le).
A12: Réutilisation / Réutilisable | B12: Processus par lequel un produit, une pièce détachée ou une fixation, ayant atteint la fin de sa première utilisation, est utilisé(e) dans le même but pour lequel il ou elle a été conçu(e). Une réutilisation après une deuxième ou plusieurs utilisation(s) est également considérée comme une réutilisation.
A13: Restauration d'usine | B13: Fonctionnalité ou réglage spécifique à activer par le client, si le produit le permet, afin de rétablir la valeur par défaut d’une fonctionnalité spécifique de l’appareil telle qu'elle a été définie en usine et qui est disponible lorsque le client utilise le produit pour la première fois. | C13: Inspiré du Règlement (UE) 2019/2021 de la Commission Européenne du 1er octobre 2019 fixant des exigences d’écoconception pour les dispositifs d’affichage électroniques conformément à la Directive 2009/125/CE du Parlement européen et du Conseil, modifiant le règlement (CE) No 1275/2008 de la Commission et abrogeant le règlement (CE) No 642/2009 de la Commission (Texte relatif aux EEE).
A14: Mise à jour / Mise à niveau | B14: Processus d'amélioration de la fonctionnalité, des performances, de la capacité ou de l'esthétique d'un produit. Ce processus peut impliquer des modifications du logiciel, du micrologiciel et / ou d'un composant matériel du produit. | C14: D'après la Norme NF EN 45554 "Méthodes générales pour l'évaluation de la capacité de réparation, réutilisation et amélioration des produits liés à l'énergie", 2020.
A15: Mise à jour corrective | C15: Inspiré de la Norme AFNOR NF EN 13306 X 60-319 de juin 2011 "Ensemble de toutes les actions techniques, administratives et de management durant le cycle de vie d'un bien, destinées à le maintenir ou à le rétablir dans un état dans lequel il peut accomplir la fonction requise"
B16: Mise à jour exécutée après détection d'une panne et destinée à remettre un bien ou un logiciel dans un état dans lequel il peut accomplir une fonction requise. Ce type de mise à jour corrige les défauts de fonctionnement ou de non-conformité du matériel ou d’un logiciel mais n’ajoute pas de nouvelles fonctionnalités.
A17: Mise à jour évolutive
B18: Mise à jour consistant à modifier progressivement l’application logicielle en l’enrichissant de nouvelles fonctionnalités ou de modules supplémentaires, ou en remplaçant une fonction existante par une autre, voire en proposant une approche différente.
A20: Fixation | B20: Dispositif matériel qui raccorde ou fixe mécaniquement ou magnétiquement deux ou plusieurs objets, parties ou pièces détachées. Une fixation est généralement non permanente, c'est à dire, qu'elle peut être enlevée ou démontée facilement sans endommager les objets, parties ou pièces détachées raccordée(s) ou fixée(s) ensemble (exemple : vis ou clips). Les soudures et certains collages sont à contrario des fixations permanentes. Les adhésifs sont considérés comme des fixations non réutilisable sauf si de nouveaux sont fournis avec la pièce détachée. | C20: Inspiré de Lamar, "Fasteners - Their Needs and Types", Bright Hub Engineering, 2020.
A21: Fixation réutilisable | B21: Voir la définition de « réutilisable » | C21: D'après la Norme NF EN 45554 "Méthodes générales pour l'évaluation de la capacité de réparation, réutilisation et amélioration des produits liés à l'énergie", 2020.
A22: Fixation amovible | B22: Un système de fixations d'origine pouvant être complètement retiré (sans causé de dommages ni laisser de résidus).
A23: Outil propriétaire | B23: Outil non disponible dans le commerce et appartenant exclusivement à une partie ou une entreprise, et en vertu duquel, son utilisation par une autre partie (un utilisateur final ou un client) implique des droits d'auteurs, une licence et/ou un coût. | C23: Inspiré de Will Kenton, "Proprietary Technology", 2019.
A24: Outil spécifique | B24: Outil qui ne figure pas dans la liste des outils communs sans être un outil propriétaire.
A25: Pièce / Pièces détachée | B25: Elément unitaire rentrant dans la composition de l’équipement.
A28: VOCABULAIRE EUROPEEN
A30: Eco-conception des lave-linges | B30: Ecodesign of washing machines
A31: RÈGLEMENT (UE) 2019/2023 DE LA COMMISSION du 1er octobre 2019 établissant des exigences en matière d’écoconception applicables aux lave-linge ménagers et aux lave-linge séchants ménagers conformément à la directive 2009/125/CE du Parlement européen et du Conseil, modifiant le règlement (CE) no 1275/2008 de la Commission et abrogeant le règlement (UE) no 1015/2010 de la Commission. | B31: COMMISSION REGULATION (EU) 2019/2021 Of 1 October 2019 laying down ecodesign requirements for electronic displays pursuant to Directive 2009/125/EC of the European Parliament and of the Council, amending Commission Regulation (EC) No 1275/2008 and repealing Commission Regulation (EC) No 642/2009
A33: Liste des informations à fournir (documentation)
A35: → Les informations de réparation et d’entretien du lave-linge ménager ou du lave-linge séchant ménager mentionnées au point a) comprennent : | B35: → the household washing machine or household washer-dryer repair and maintenance information referred to in (a) shall include :
A37: une identification sans équivoque du lave-linge ménager ou du lave-linge séchant ménager | B37: the unequivocal household washing machine or household washer-dryer identification
A38: un schéma de démontage ou une vue éclatée | B38: a disassembly map or exploded view
A39: un manuel technique d’instructions relatives à la réparation | B39: technical manual of instructions for repair
A40: une liste du matériel de réparation et de test nécessaire | B40: list of necessary repair and test equipment
A41: les informations concernant les composants et le diagnostic (telles que les valeurs théoriques minimales et maximales pour les mesures) | B41: component and diagnosis information (such as minimum and maximum theoretical values for measurements)
A42: des schémas de câblage et de raccordement | B42: wiring and connection diagrams
A43: les codes d’erreur et de diagnostic (y compris les codes spécifiques au fabricant, le cas échéant) | B43: diagnostic fault and error codes (including manufacturer-specific codes, where applicable)
A44: les instructions pour l’installation des logiciels et micrologiciels pertinents, y compris les logiciels de réinitialisation | B44: instructions for installation of relevant software and firmware including reset software
A45: les informations sur les modalités d’accès aux données relatives aux incidents de défaillance signalés enregistrées dans le lave-linge ménager ou le lave-linge séchant ménager (le cas échéant) | B45: information on how to access data records of reported failure incidents stored on the household washing machine or washer-dryer (where applicable)
A47: Liste des pièces détachées à mettre à disposition
A49: Moteur et balais de moteur | B49: Motor and motor brushes
A50: Transmission entre moteur et tambour | B50: Transmission between motor and drum
A51: Pompes | B51: Pumps
A52: Amortisseurs et ressorts | B52: Shock absorbers and springs
A53: Tambour de lavage, croisillon de tambour et roulements correspondants (séparément ou en lot) | B53: Washing drum, drum spider and related ball bearings (separately or bundled)
A54: Générateurs de chaleurs et éléments chauffants, y compris les pompes à chaleur, (séparément ou groupés) | B54: Heaters and heating elements, including heat pumps (separately or bundled)
A55: Conduites et matériel connexe y compris l’ensemble des flexibles, vannes, filtres et systèmes aquastop (séparé­ment ou groupés) | B55: Piping and related equipment including all hoses, valves, filters and aquastops (separately or bundled)
A56: Cartes de circuit imprimé | B56: Printed circuit boards
A57: Affichages électroniques | B57: Electronic displays
A58: Manocontacts | B58: Pressure switches
A59: Thermostats et capteurs | B59: Thermostats and sensors
A60: Logiciels et micrologiciels, y compris logiciels de réinitialisation | B60: Software and firmware including reset software
A61: Portes | B61: Door
A62: Charnières et joints de porte | B62: Door hinge and seals
A63: Autres joints | B63: Other seals
A64: Assemblage de verrouillage de la porte | B64: Door locking assembly
A65: Accessoires en matière plastique tels que distributeurs de détergent | B65: Plastic peripherals such as detergent dispensers

Sheet ANNEXE_2
A1: ANNEXE 2 : OUTILS BASIQUES ET LEURS RÉFÉRENCES DE NORME
A3: D'après la Norme NF EN 45554 "Méthodes générales pour l'évaluation de la capacité de réparation, réutilisation et amélioration des produits liés à l'énergie", 2020.
A6: Type d’outils | B6: Illustration | C6: Référence
B7: (illustration informative)
A8: Tournevis à tête fendue, à empreinte cruciforme et à empreinte à six lobes internes. | C8: ISO 2380, ISO 8764, ISO 10664
A9: Clé pour vis à six pans creux | C9: ISO 2936
A10: Clé mixte | C10: ISO 7738
A11: Pince universelle | C11: ISO 5746
A12: Pince à bec demi-rond | C12: ISO 5745
A13: Pince coupante diagonale | C13: ISO 5749
A14: Pince multiprise | C14: ISO 8976
A15: Pince étau
A16: Pince universelle pour dénudage et sertissage des terminaux
A17: Levier
A18: Pincette
A19: Marteau (tête métallique) | C19: ISO 15601
A20: Couteau universel (cutter) avec lame rétractable
A21: Multimètre
A22: Voltmètre (testeur de tension)
A23: Fer à souder
A24: Pistolet à colle
A25: Loupe

Sheet ANNEXE_3
A1: ANNEXE 3 : PRÉCISION SUR LA NOTION D'ÉTAPE DE DÉMONTAGE ET CAS D'APPLICATION CONCRET
